[Event "FIDE WCCC U12 2018"]
[Site "Santiago de Compostela"]
[Date "2018.11.12"]
[Round "8"]
[White "Ohanyan, Emin"]
[Black "Tham, Nam"]
[Result "1-0"]
[ECO "C28"]
[WhiteElo "1742"]
[BlackElo "1983"]
[Annotator "NA RC"]
[PlyCount "51"]
[EventDate "2018.11.04"]
[EventType "swiss"]
[EventCountry "ESP"]
[SourceTitle "playchess.com"]
[Source "ChessBase"]
[SourceQuality "1"]
[TimeControl "40/5400+30:1800+30"]

{[%evp 25,45,61,154,177,363,292,268,137,116,85,271,261,260,225,716,753,705,741,753,775,1114,1170]} 1. e4 {[%emt 0:00:00]} e5 {[%emt 0:00:00]} 2. Nc3 {[%emt 0:00:00]} Nf6 {[%emt 0:00:00]} 3. Bc4 {[%emt 0:00:00]} Nc6 {[%emt 0:00:00]} 4. d3 {[%emt 0:00:00]} Na5 5. Bb3 Nxb3 {[%emt 0:00:25]} 6. axb3 {[%emt 0:00:23]} c6 {[%emt 0:00:22] C28: Vienna Game: 2...Nf6 3 Bc4 Nc6} (6... Bc5 7. h3 d6 8. Be3 Bxe3 9. fxe3 O-O 10. Qf3 Ne8 11. g4 Qh4+ 12. Kd2 g6 13. Nge2 c6 14. Raf1 {½-½ (61) Caruana,F (2822)-Aronian,L (2767) chess.com INT 2018}) 7. f4 {[%emt 0:05:39]} d6 {[%emt 0:02:29]} 8. Nf3 {[%emt 0:00:29]} Qc7 {[%emt 0:01:08]} 9. O-O {[%emt 0:01:46]} Be7 {[%emt 0:00:31]} 10. Kh1 {[%emt 0:12:20]} h6 {[%emt 0:02:18]} 11. Qe1 $146 {[%emt 0:03:58]} ({Predecessor:} 11. fxe5 dxe5 12. Be3 a6 13. Qd2 Be6 14. Na4 Nd7 15. Qf2 c5 16. Nh4 g6 17. Nf3 Rc8 {½-½ (17) Meier,G (2113)-Bhend,E (2240) Vaduz 2003}) 11... O-O {[%emt 0:06:22]} 12. f5 {[%emt 0:05:01]} Kh8 {[%emt 0:02:27]} 13. Rg1 {[%emt 0:22:27]} d5 {[%emt 0:03:32] [#]} (13... Kh7 $1 $14) 14. g4 $1 {[%emt 0:00:51]} Bb4 $2 {[%emt 0:16:08]} (14... dxe4 $16 15. dxe4 Ne8) 15. Qh4 {[%emt 0:07:19]} Nh7 {[%emt 0:09:04] [#]} 16. f6 {[%emt 0:06:09]} ({Weaker is} 16. exd5 f6 $16) (16. g5 $1 $18 {[%cal Rg5h6]} g6 17. gxh6 (17. Qxh6 Rg8 $18)) 16... Nxf6 {[%emt 0:13:13] [#]} 17. Bxh6 $1 {[%emt 0:01:37]} gxh6 $2 {[%emt 0:03:28]} (17... Nh7 $16 {was called for.}) 18. Qxf6+ {[%emt 0:00:22]} Kh7 {[%emt 0:00:59]} 19. Ng5+ {[%emt 0:13:19]} ({But not} 19. exd5 $6 Be7 $18) 19... hxg5 $2 {[%emt 0:08:16]} (19... Kg8 20. exd5 (20. Qxh6 f6 $18) 20... Qd6 21. Qxd6 Bxd6) 20. Rg3 {[%emt 0:00:23]} Bxg4 {[%emt 0:00:14]} 21. Qxg5 {[%emt 0:02:50]} ({Not} 21. Rxg4 Qe7 $18) 21... f5 {[%emt 0:09:09]} 22. Qh4+ {[%emt 0:01:50]} Kg6 {[%emt 0:02:52]} 23. exf5+ $18 {[%emt 0:00:23]} Kxf5 {[%emt 0:01:09]} 24. Qxg4+ {[%emt 0:01:39]} Kf6 {[%emt 0:00:13]} 25. Rf1+ {[%emt 0:01:47]} Ke7 {[%emt 0:00:24]} 26. Qxb4+ {[%emt 0:00:26]} 1-0

[Event "FIDE WCCC U12 2018"]
[Site "Santiago de Compostela"]
[Date "2018.11.13"]
[Round "9"]
[White "Creanga, Robert-Ionut"]
[Black "Ohanyan, Emin"]
[Result "0-1"]
[ECO "E82"]
[WhiteElo "2066"]
[BlackElo "1742"]
[Annotator "NA RC"]
[PlyCount "70"]
[EventDate "2018.11.04"]
[EventType "swiss"]
[EventCountry "ESP"]
[SourceTitle "playchess.com"]
[Source "ChessBase"]
[SourceQuality "1"]
[TimeControl "40/5400+30:1800+30"]

{[%evp 8,70,46,32767,32767,32767,52,32767,63,38,35,63,62,32767,32767,32767,32767,32767,32767,32767,32767,32767,32767,84,74,75,32767,82,32767,32767,32767,32767,89,79,83,58,67,32767,-6,-64,32767,-25,-22,32767,-630,-587,-632,-594,-199,32767,32767,32767,32767,32767,32767,32767,32767,32767,32767,-783,32767,-810,32767,-766,-901]} 1. d4 {[%emt 0:00:00]} Nf6 {[%emt 0:00:00]} 2. c4 {[%emt 0:00:00]} g6 {[%emt 0:00:00]} 3. f3 {[%emt 0:00:00]} Bg7 {[%emt 0:00:00]} 4. e4 {[%emt 0:00:19]} O-O {[%emt 0:00:37]} 5. Nc3 {[%emt 0:00:17]} d6 {[%emt 0:00:24]} 6. Be3 {[%emt 0:00:08]} b6 {[%emt 0:01:19]} 7. Qd2 {[%emt 0:06:49]} c5 {[%emt 0:03:35]} 8. Nge2 {[%emt 0:03:16]} Nc6 {[%emt 0:06:19]} 9. d5 {[%emt 0:03:50] E82: Königsindisch (Sämisch-Angriff)} Na5 {[%emt 0:01:26] LiveBook: 6 Games} (9... Ne5 10. Ng3 e6 11. Be2 Re8 12. O-O exd5 13. cxd5 a6 14. a4 Rb8 15. Kh1 c4 16. Rab1 b5 17. axb5 axb5 18. b4 Bd7 19. Bd4 Ra8 20. f4 Neg4 21. h3 Nh6 22. e5 Nh5 23. Bxh5 gxh5 24. Nxh5 Qh4 25. Nxg7 {1-0 (25) Bocharov,D (2585)-Savitskiy,S (2412) Sochi 2017}) 10. Ng3 {[%emt 0:04:27]} h5 {[%emt 0:16:37]} 11. Be2 $146 {[%emt 0:17:46]} ({Vorgänger:} 11. Bd3 Ba6 12. b3 Re8 13. O-O e6 14. Rae1 e5 15. Bg5 Qd7 16. h3 Nh7 {½-½ (56) Janssens,T-Miscek,V Balatonkenese 1999}) 11... a6 {[%emt 0:06:22]} 12. O-O {[%emt 0:05:09]} Rb8 {[%emt 0:05:06]} 13. Rab1 {[%emt 0:06:01]} Qc7 {[%emt 0:04:09]} 14. b4 {[%emt 0:10:10]} cxb4 {[%emt 0:00:43]} 15. Rxb4 {[%emt 0:00:49]} Nd7 {[%emt 0:29:43]} 16. Na4 {[%emt 0:11:25]} Nb7 {[%emt 0:00:37]} 17. Nxb6 {[%emt 0:07:16]} Nbc5 {[%emt 0:03:09]} 18. Nxd7 {[%emt 0:03:42]} Bxd7 {[%emt 0:00:05]} 19. Rfb1 {[%emt 0:02:10]} Na4 {[%emt 0:04:03]} 20. Rxb8 {[%emt 0:04:33]} Rxb8 {[%emt 0:00:07]} 21. Rxb8+ {[%emt 0:01:34]} Qxb8 {[%emt 0:00:06]} 22. Bd1 {[%emt 0:01:17]} Qb1 {[%emt 0:05:59]} 23. Kf2 {[%emt 0:02:57]} Nb2 {[%emt 0:04:25]} 24. Bb3 $1 {[%emt 0:01:56]} Ba4 {[%emt 0:02:45]} 25. Ke2 {[%emt 0:01:20] [#]} Bxb3 $1 {[%emt 0:01:16]} 26. axb3 {[%emt 0:00:01] [#]} Bc3 $1 {[%emt 0:01:53]} 27. Qxc3 {[%emt 0:01:16]} Qd1+ {[%emt 0:00:10]} 28. Kf2 {[%emt 0:00:03]} Nd3+ {[%emt 0:00:09]} 29. Qxd3 {[%emt 0:00:04]} Qxd3 {[%emt 0:00:05]} 30. Ne2 {[%emt 0:00:09]} Qxb3 {[%emt 0:01:04]} 31. c5 {[%emt 0:00:04]} dxc5 {[%emt 0:01:08]} 32. Bxc5 {[%emt 0:00:08]} Kf8 {[%emt 0:01:02]} 33. Nd4 {[%emt 0:00:40]} Qc4 {[%emt 0:00:37]} 34. Ba7 {[%emt 0:00:24]} a5 {[%emt 0:00:41]} 35. Nc6 {[%emt 0:00:11]} a4 $19 {[%emt 0:00:11]} 0-1

[Event "FIDE WCCC U12 2018"]
[Site "Santiago de Compostela"]
[Date "2018.11.13"]
[Round "9"]
[White "Damjanovic, Vuk"]
[Black "Metzdorf, Matteo"]
[Result "1-0"]
[ECO "D58"]
[WhiteElo "2053"]
[BlackElo "1865"]
[Annotator "NA RC"]
[PlyCount "207"]
[EventDate "2018.11.04"]
[EventType "swiss"]
[EventCountry "ESP"]
[SourceTitle "playchess.com"]
[Source "ChessBase"]
[SourceQuality "1"]
[TimeControl "40/5400+30:1800+30"]

{[%evp 9,166,14,15,32767,26,32767,6,32767,0,-10,32767,32767,5,8,36,25,32767,32767,32767,32767,32767,32767,32767,32767,32767,32767,10,32767,32767,32767,31,29,32767,0,70,32767,64,32767,32767,4,32767,32767,95,32767,32767,32767,99,32767,97,104,32767,32767,51,0,104,32767,101,32767,32767,32767,127,165,174,32767,32767,32767,32767,164,32767,114,32767,104,171,32767,32767,32767,90,107,194,162,156,168,193,258,177,176,203,202,202,199,180,180,201,277,204,210,408,222,203,32767,234,284,303,688,327,384,406,455,12833,390,12850,0,128,145,145,128,128,109,32767,32767,32767,32767,324,32767,32767,32767,12851,335,404,304,387,503,608,303,795,750,438,1090,474,637,406,579,550,12851,935,1246,12851,1083,1108,1019,1237,1322,6068,12851,5583,7056,29973,5714,29952]} 1. d4 {[%emt 0:00:00]} e6 {[%emt 0:00:00]} 2. c4 {[%emt 0:00:00]} Nf6 {[%emt 0:00:04]} 3. Nc3 {[%emt 0:00:00]} d5 {[%emt 0:00:12]} 4. Bg5 {[%emt 0:00:00]} Be7 {[%emt 0:00:54]} 5. e3 {[%emt 0:00:16]} h6 {[%emt 0:00:28]} 6. Bh4 {[%emt 0:00:15]} O-O {[%emt 0:00:53]} 7. Nf3 {[%emt 0:00:21]} b6 {[%emt 0:01:52]} 8. Bxf6 {[%emt 0:00:08]} Bxf6 {[%emt 0:00:41]} 9. cxd5 {[%emt 0:01:04]} exd5 {[%emt 0:01:14]} 10. Be2 {[%emt 0:02:02]} Be6 {[%emt 0:02:30] LiveBook: 25 Games} 11. O-O {[%emt 0:02:28] D58: Queen's Gambit Declined: Tartakower Defence} Qe7 {[%emt 0:02:40]} (11... c5 12. Rc1 Nc6 13. Na4 c4 14. b3 b5 15. Nc5 Be7 16. Nxe6 fxe6 17. bxc4 bxc4 18. Qa4 Qd6 {½-½ (38) Korobov,A (2705)-Hracek,Z (2628) Legnica 2013}) 12. Qa4 {[%emt 0:09:57]} Rd8 {[%emt 0:09:23]} 13. Rac1 {[%emt 0:06:04]} c5 {[%emt 0:09:06]} 14. dxc5 {[%emt 0:01:12]} bxc5 {[%emt 0:00:58]} 15. Rfd1 {[%emt 0:00:32]} Bxc3 $146 {[%emt 0:16:37]} ({Predecessor:} 15... a6 16. Qa3 Qa7 17. Na4 c4 {½-½ (36) Rajlich,I (2425)-Mkrtchian,L (2240) Elista 1998}) 16. Rxc3 {[%emt 0:00:10]} Nd7 {[%emt 0:00:13]} 17. Bb5 {[%emt 0:16:22]} Nb6 {[%emt 0:18:41]} 18. Qf4 {[%emt 0:13:52]} c4 {[%emt 0:27:34]} 19. Nd4 {[%emt 0:26:43]} Qd6 {[%emt 0:06:13]} 20. Qxd6 {[%emt 0:22:49]} Rxd6 {[%emt 0:00:19]} 21. Ne2 {[%emt 0:00:29]} Rad8 {[%emt 0:05:20]} ({Black should play} 21... Rb8 $11) 22. Ra3 {[%emt 0:02:40]} Bd7 {[%emt 0:06:58]} 23. Nc3 {[%emt 0:05:42]} Ra8 {[%emt 0:03:29]} 24. Ra6 (24. Bxd7 $16 Rxd7 25. Ra5) 24... Bc8 {[%emt 0:04:54]} 25. Ra5 {[%emt 0:06:40]} Bb7 {[%emt 0:00:55]} (25... a6 $11 {keeps the balance.} 26. Ba4 Nxa4 27. Nxa4 (27. Rxa4 Rb6 $11) 27... Be6) 26. Ba4 {[%emt 0:00:55]} a6 {[%emt 0:00:40]} 27. Rd4 {[%emt 0:00:42]} Rc8 {[%emt 0:00:31]} (27... Nxa4 $14 28. Nxa4 Rg6) 28. Bd1 {[%emt 0:00:36]} Rcd8 {[%emt 0:01:21]} 29. Bf3 {[%emt 0:00:21]} Kf8 {[%emt 0:00:43]} 30. Rc5 {[%emt 0:00:25]} Rc6 {[%emt 0:00:41]} 31. Ra5 {[%emt 0:00:38]} Rcd6 {[%emt 0:00:16]} 32. g3 {[%emt 0:00:29]} Ke7 {[%emt 0:00:21]} 33. Kg2 {[%emt 0:00:35]} f5 {[%emt 0:00:26]} 34. Rc5 {[%emt 0:00:34]} Rc6 {[%emt 0:00:39]} 35. Nxd5+ Rxd5 {[%emt 0:01:08]} 36. Rcxd5 {[%emt 0:00:59]} Nxd5 37. Bxd5 {[%emt 0:00:24]} Rb6 {[%emt 0:00:47]} 38. Bxb7 {[%emt 0:00:31]} Rxb7 {[%emt 0:00:21]} 39. Rd2 {[%emt 0:00:37]} ({Better is} 39. Rxc4 $18 Rxb2 40. a3) 39... Ke6 {[%emt 0:00:33]} 40. Kf3 {[%emt 0:00:00]} Ke5 {[%emt 0:00:00]} 41. Ke2 {[%emt 0:00:38]} g5 {[%emt 0:01:17]} 42. f3 {[%emt 0:01:40]} Rb6 {[%emt 0:04:07]} 43. Kd1 {[%emt 0:03:41]} f4 {[%emt 0:09:23]} (43... h5 $16 {is a better defense.} 44. f4+ gxf4) 44. gxf4+ {[%emt 0:01:08]} gxf4 {[%emt 0:00:09] [#]} 45. e4 $1 {[%emt 0:00:06]} Rb5 {[%emt 0:03:04]} 46. Kc2 {[%emt 0:00:35]} Ra5 {[%emt 0:02:04]} 47. Kc3 {[%emt 0:11:07]} Rxa2 {[%emt 0:01:10] [#]} 48. Rd5+ $1 {[%emt 0:00:08]} ({Much less strong is} 48. Kxc4 $6 Ke6 $16) 48... Ke6 {[%emt 0:01:04]} 49. Rh5 {[%emt 0:01:25]} Ra1 {[%emt 0:00:53]} 50. Rxh6+ {[%emt 0:00:08]} Ke5 {[%emt 0:00:30]} 51. Rh5+ {[%emt 0:06:54]} ({Not} 51. Kxc4 Rc1+ 52. Kd3 Rd1+ 53. Kc2 Rf1 $16) 51... Ke6 {[%emt 0:02:07] [#]} 52. Rf5 $1 {[%emt 0:08:52]} Rc1+ {[%emt 0:01:34]} 53. Kd2 {[%emt 0:00:12]} Rh1 {[%emt 0:00:24]} 54. Rxf4 {[%emt 0:00:28]} Rxh2+ {[%emt 0:00:19]} 55. Kc3 {[%emt 0:00:10]} Re2 {[%emt 0:01:11]} 56. Rf5 {[%emt 0:00:29]} Ke7 {[%emt 0:01:21]} 57. Re5+ {[%emt 0:00:17]} Kd6 {[%emt 0:01:33]} 58. Ra5 {[%emt 0:01:31]} Re3+ {[%emt 0:00:55]} 59. Kxc4 {[%emt 0:00:29]} Rxf3 {[%emt 0:00:04]} 60. Kd4 $2 {[%emt 0:00:28]} (60. Rxa6+ $18 Ke5 61. Ra8) 60... Rb3 {[%emt 0:00:20]} 61. Rxa6+ {[%emt 0:00:07]} Ke7 {[%emt 0:00:07]} 62. Ra2 {[%emt 0:00:23]} Rb4+ {[%emt 0:00:39]} 63. Kd5 {[%emt 0:00:21]} Rb5+ {[%emt 0:01:17]} 64. Kc4 {[%emt 0:00:06]} Re5 {[%emt 0:00:05]} 65. Ra7+ {[%emt 0:01:10]} Kd6 {[%emt 0:00:35]} 66. Ra6+ {[%emt 0:00:22]} Ke7 {[%emt 0:00:51]} 67. Kd4 {[%emt 0:00:07]} Rb5 {[%emt 0:00:06]} 68. Kc3 {[%emt 0:00:03]} Rc5+ {[%emt 0:00:33]} 69. Kb3 {[%emt 0:00:14]} Rb5+ {[%emt 0:01:06]} 70. Ka3 {[%emt 0:00:08]} Re5 {[%emt 0:00:38]} 71. Ra4 {[%emt 0:00:05]} Kd6 {[%emt 0:00:40]} 72. Rc4 {[%emt 0:00:06]} Ra5+ {[%emt 0:01:12]} 73. Kb4 {[%emt 0:00:08]} Ra8 {[%emt 0:00:39]} 74. b3 {[%emt 0:00:20]} Ke5 {[%emt 0:00:45]} 75. Kc3 {[%emt 0:00:18]} Rh8 {[%emt 0:01:02]} 76. Kb2 {[%emt 0:03:04]} Rh2+ {[%emt 0:01:04]} 77. Ka3 {[%emt 0:00:06]} Rh8 {[%emt 0:00:24]} 78. b4 {[%emt 0:00:29]} Ra8+ {[%emt 0:00:07]} 79. Kb3 {[%emt 0:00:05]} Rb8 {[%emt 0:00:32]} 80. Ka4 {[%emt 0:00:08]} Kd6 {[%emt 0:00:25]} 81. b5 {[%emt 0:00:08]} Ra8+ {[%emt 0:00:22]} 82. Kb4 {[%emt 0:00:09]} Ke5 {[%emt 0:00:48]} 83. b6 {[%emt 0:00:12]} Kd6 {[%emt 0:00:43]} 84. Kb5 {[%emt 0:00:09]} Kd7 {[%emt 0:01:40]} 85. Rd4+ {[%emt 0:01:06]} Kc8 {[%emt 0:01:31]} 86. Kc6 {[%emt 0:00:08]} Ra6 {[%emt 0:00:08]} 87. e5 {[%emt 0:00:05]} Ra7 {[%emt 0:00:32]} 88. Rd8+ {[%emt 0:00:11]} Kxd8 {[%emt 0:00:08]} 89. bxa7 {[%emt 0:00:04]} Ke7 {[%emt 0:00:07]} 90. a8=Q {[%emt 0:00:07]} Ke6 {[%emt 0:00:19]} 91. Qe8+ {[%emt 0:00:04]} Kf5 {[%emt 0:00:05]} 92. e6 {[%emt 0:00:05]} Kf4 {[%emt 0:00:06]} 93. Qd7 {[%emt 0:00:04]} Kf3 {[%emt 0:00:05]} 94. e7 {[%emt 0:00:06]} Kf4 {[%emt 0:00:04]} 95. e8=N {[%emt 0:00:04]} Kf3 {[%emt 0:00:06]} 96. Qe6 {[%emt 0:00:05]} Kf4 {[%emt 0:00:04]} 97. Nd6 {[%emt 0:00:04]} Kf3 {[%emt 0:00:04]} 98. Qe4+ {[%emt 0:00:04]} Kf2 {[%emt 0:00:06]} 99. Nc4 {[%emt 0:00:06]} Kg3 {[%emt 0:00:07]} 100. Qf5 Kh2 {[%emt 0:00:08]} 101. Qg4 {[%emt 0:00:11]} Kh1 {[%emt 0:00:06]} 102. Nd2 {[%emt 0:00:07]} Kh2 {[%emt 0:00:06]} 103. Nf3+ {[%emt 0:00:05]} Kh1 {[%emt 0:00:04]} 104. Qg1# {[%emt 0:00:07]} 1-0

[Event "FIDE WCCC U12 2018"]
[Site "Santiago de Compostela"]
[Date "2018.11.13"]
[Round "9"]
[White "Xu, Arthur"]
[Black "Zhakshylykov, Erzhan"]
[Result "1-0"]
[ECO "B54"]
[WhiteElo "2034"]
[BlackElo "1526"]
[Annotator "NA RC"]
[PlyCount "67"]
[EventDate "2018.11.04"]
[EventType "swiss"]
[EventCountry "ESP"]
[SourceTitle "playchess.com"]
[Source "ChessBase"]
[SourceQuality "1"]
[TimeControl "40/5400+30:1800+30"]

1. e4 {[%emt 0:00:00]} c5 {[%emt 0:00:00]} 2. Nf3 {[%emt 0:00:00]} d6 {[%emt 0:00:07]} 3. d4 {[%emt 0:00:00]} cxd4 {[%emt 0:00:09]} 4. Nxd4 {[%emt 0:00:00]} Nf6 {[%emt 0:00:13]} 5. f3 {[%emt 0:00:00]} g6 {[%emt 0:02:50]} 6. c4 {[%emt 0:00:06]} Bg7 {[%emt 0:00:11]} 7. Nc3 {[%emt 0:00:10]} Nc6 {[%emt 0:00:20]} 8. Be3 {[%emt 0:00:07]} Bd7 {[%emt 0:00:34]} 9. Be2 {[%emt 0:00:09]} O-O {[%emt 0:00:20]} 10. O-O {[%emt 0:00:08]} Ne5 {[%emt 0:02:05]} 11. Qd2 {[%emt 0:01:25]} Rc8 {[%emt 0:01:41]} 12. b3 {[%emt 0:03:20]} a6 {[%emt 0:02:20]} 13. Rac1 {[%emt 0:01:48]} Re8 {[%emt 0:10:40] LiveBook: 9 Games} 14. Rfd1 {[%emt 0:06:37] B38: Sicilian: Maroczy Bind with 5...Bg7 and 7...0-0} (14. Rc2 Nc6 15. Rb1 Nb4 16. Rcc1 Nh5 17. Bf1 Nc6 18. Nde2 f5 19. Nd5 fxe4 20. Bb6 exf3 21. gxf3 Rc7 22. Bxc7 {1-0 (39) Dudukin,I (2396)-Zaremba,A (2348) chess.com INT 2017}) 14... Qa5 {[%emt 0:03:45]} 15. Kh1 {[%emt 0:02:02]} h5 {[%emt 0:05:41]} 16. h3 $146 {[%emt 0:18:56]} ({Predecessor:} 16. Rc2 Bc6 17. Nd5 Qxd2 18. Rdxd2 Nxd5 19. exd5 Bd7 20. h3 f5 21. b4 e6 22. dxe6 Bxe6 23. Nxe6 Rxe6 {1-0 (54) Creteanu,G (1745)-Valeanu,E (1835) Sovata 2001}) 16... Rb8 {[%emt 0:08:52]} 17. Rc2 {[%emt 0:06:37]} Rec8 {[%emt 0:05:05]} 18. Rdc1 {[%emt 0:04:15]} Qb4 {[%emt 0:09:32]} (18... Nc6 $14) 19. Bg5 {[%emt 0:03:07]} Nc6 {[%emt 0:10:24]} 20. Bxf6 {[%emt 0:05:17]} exf6 {[%emt 0:01:28]} 21. Nd5 {[%emt 0:21:30]} Qxd2 {[%emt 0:00:49]} 22. Rxd2 {[%emt 0:00:06]} Re8 {[%emt 0:04:25]} 23. Nb6 {[%emt 0:05:51]} Be6 {[%emt 0:01:40]} 24. Nxe6 {[%emt 0:07:24]} Bh6 {[%emt 0:02:44]} 25. Rcd1 {[%emt 0:02:18]} Bxd2 {[%emt 0:00:59]} 26. Nc7 {[%emt 0:00:10]} Bf4 {[%emt 0:02:58]} 27. Nxe8 {[%emt 0:02:02]} Rxe8 {[%emt 0:00:13]} 28. Nd5 {[%emt 0:00:06]} Be5 {[%emt 0:00:28]} 29. f4 {[%emt 0:00:16]} Bb2 {[%emt 0:05:56] [#]} 30. Rd2 $1 {[%emt 0:04:15]} Ba1 {[%emt 0:03:19]} 31. e5 {[%emt 0:00:34]} Rd8 {[%emt 0:06:32]} 32. exd6 {[%emt 0:01:40]} Kf8 {[%emt 0:08:54]} 33. c5 {[%emt 0:01:18]} Bd4 {[%emt 0:02:25]} 34. b4 $18 {[%emt 0:00:27]} 1-0

[Event "FIDE WCCC U12 2018"]
[Site "Santiago de Compostela"]
[Date "2018.11.13"]
[Round "9"]
[White "Nathan, Krishna"]
[Black "Yu, Jason"]
[Result "1-0"]
[ECO "C45"]
[WhiteElo "1895"]
[BlackElo "2097"]
[Annotator "NA RC"]
[PlyCount "103"]
[EventDate "2018.11.04"]
[EventType "swiss"]
[EventCountry "ESP"]
[SourceTitle "playchess.com"]
[Source "ChessBase"]
[SourceQuality "1"]
[TimeControl "40/5400+30:1800+30"]

{[%evp 16,103,44,18,34,32767,28,20,32767,32767,32767,32767,32767,32767,32767,32767,32767,32767,32767,32767,32767,32767,32767,32767,32767,32767,39,-5,0,32767,32767,32767,32767,32767,168,32767,32767,32767,214,32767,342,156,256,32767,32767,287,314,328,652,32767,32767,694,647,184,218,222,223,210,214,32767,252,32767,32767,32767,291,32767,302,278,266,308,289,32767,338,32767,450,32767,32767,363,32767,362,495,450,579,591,595,657,636,743,680,706]} 1. e4 {[%emt 0:00:00]} e5 {[%emt 0:00:00]} 2. Nf3 {[%emt 0:00:00]} Nc6 {[%emt 0:00:00]} 3. d4 {[%emt 0:00:00]} exd4 {[%emt 0:00:00]} 4. Nxd4 {[%emt 0:00:00]} Bc5 {[%emt 0:00:26]} 5. Nb3 {[%emt 0:00:07]} Bb6 {[%emt 0:00:03]} 6. Nc3 {[%emt 0:00:07]} Nf6 {[%emt 0:00:09]} 7. Bg5 {[%emt 0:00:11]} h6 {[%emt 0:00:53]} 8. Bh4 {[%emt 0:00:03]} g5 {[%emt 0:10:47] LiveBook: 4 Games C45: Scotch Game} 9. Bg3 {[%emt 0:00:03]} Qe7 {[%emt 0:01:43]} 10. f3 {[%emt 0:01:12]} d6 {[%emt 0:06:10]} 11. Bb5 {[%emt 0:04:43]} (11. Qd2 Bd7 12. h4 Rg8 13. O-O-O O-O-O 14. hxg5 hxg5 15. Rh6 Be6 16. Bb5 Bxb3 17. axb3 {1-0 (41) Navara,D (2726)-Malakhov,V (2691) Antalya 2017}) 11... Bd7 {[%emt 0:06:56]} 12. Qd2 {[%emt 0:04:47]} a6 {[%emt 0:04:31]} 13. Bxc6 {[%emt 0:00:42]} Bxc6 {[%emt 0:01:32]} 14. O-O-O {[%emt 0:00:44]} O-O-O {[%emt 0:05:01]} 15. Rhe1 $146 {[%emt 0:03:44]} ({Predecessor:} 15. Bf2 Nd7 16. Nd4 Bxd4 17. Bxd4 {0-1 (45) Warr Esser,A (1883)-Den Dunnen,L (1890) Murmansk 2016}) 15... Rhe8 {[%emt 0:23:10]} 16. Bf2 {[%emt 0:03:44]} Bxf2 {[%emt 0:03:40]} 17. Qxf2 {[%emt 0:00:58]} Kb8 {[%emt 0:00:51]} 18. Na5 {[%emt 0:04:33]} Bd7 {[%emt 0:05:03]} 19. g3 {[%emt 0:14:21]} b6 {[%emt 0:07:10]} 20. Nc4 {[%emt 0:02:07]} Bc8 {[%emt 0:02:07]} 21. Ne2 {[%emt 0:09:39]} Bb7 {[%emt 0:08:43]} 22. Nd4 {[%emt 0:04:08]} g4 {[%emt 0:02:45]} 23. e5 {[%emt 0:02:18]} Nd5 {[%emt 0:07:32]} 24. exd6 {[%emt 0:01:38]} Qf6 {[%emt 0:01:12]} 25. dxc7+ {[%emt 0:01:45]} Nxc7 {[%emt 0:01:11]} 26. Rxe8 {[%emt 0:01:11]} Rxe8 27. f4 {[%emt 0:01:09]} Ka7 $2 {[%emt 0:00:46] [#]} (27... b5 {ist wohl besser.}) 28. Qg1 {[%emt 0:04:35]} ({White should try} 28. Nf5 $1 $18 {[%mdl 512]} Bd5 (28... Qxf5 29. Qxb6+) 29. Nfd6 Bxc4 30. Nxc4 (30. Nxe8 Nxe8 31. Rd7+ Kb8 $14)) 28... Rc8 {[%emt 0:00:41]} (28... Nd5 $16 {was called for.} 29. c3 h5) 29. Ne5 {[%emt 0:01:18]} Nb5 {[%emt 0:00:07]} 30. Nxb5+ {[%emt 0:01:41]} ({Much less strong is} 30. Nxg4 $6 Nxd4 31. Nxf6 Ne2+ 32. Kd2 Nxg1 $18) 30... axb5 31. Qe3 {[%emt 0:02:25]} (31. Nxg4 Qe6 $14) 31... Qe6 $2 {[%emt 0:01:31]} (31... b4 32. Qb3 Qe7 33. Qxf7 Qc5) 32. Qa3+ {[%emt 0:00:38]} Kb8 {[%emt 0:00:01]} 33. Nd7+ {[%emt 0:01:53]} Kc7 {[%emt 0:00:02] [#]} 34. Qc3+ $2 {[%emt 0:01:11]} (34. f5 $1 {[%mdl 512]} Qxd7 (34... Qxf5 35. Qd6+) 35. Rxd7+ Kxd7 36. Qd3+ Ke7 37. Qxb5) 34... Bc6 {[%emt 0:00:02]} 35. Ne5 {[%emt 0:01:15]} Kb7 {[%emt 0:00:45]} 36. Qb3 {[%emt 0:01:39]} Qxb3 {[%emt 0:01:10]} 37. axb3 {[%emt 0:00:02]} Be4 {[%emt 0:01:09]} (37... f5 $142 38. Rd6 Be4) 38. c3 {[%emt 0:00:27]} f5 {[%emt 0:00:19]} 39. Nf7 {[%emt 0:00:45]} Kc7 {[%emt 0:00:49]} 40. Nd6 {[%emt 0:00:00]} Rh8 {[%emt 0:00:00]} 41. Nxb5+ {[%emt 0:02:39]} Kc6 {[%emt 0:01:58]} 42. c4 {[%emt 0:01:04]} Kc5 {[%emt 0:02:38]} 43. Nc3 {[%emt 0:03:43]} Bf3 {[%emt 0:03:16]} 44. Re1 {[%emt 0:01:01]} Ra8 {[%emt 0:10:45]} 45. Re5+ {[%emt 0:00:49]} Kc6 {[%emt 0:00:46]} 46. Kb1 {[%emt 0:04:08]} Rf8 {[%emt 0:08:44]} 47. b4 {[%emt 0:01:30]} Rd8 {[%emt 0:00:33]} 48. Kc2 {[%emt 0:00:32]} Ra8 {[%emt 0:00:54]} 49. Rxf5 {[%emt 0:01:05]} Ra1 {[%emt 0:00:37]} 50. Rf6+ {[%emt 0:00:11]} Kb7 {[%emt 0:00:17]} 51. Rxh6 {[%emt 0:00:23]} Rg1 {[%emt 0:00:08]} 52. f5 $18 {[%emt 0:00:54]} 1-0